Cogmind - Beta 10.1 @@@ ROGUE MODE // 2020.10.04 @ 12:41:39 Player: 3.14 Result: Self-destructed Performance ------------- Evolutions (6) 3000 Regions Visited (19) 3800 Robots Destroyed (82) 410 Value Destroyed (4838) 4838 Prototype IDs (27) 540 Alien Tech Used (0) 0 Bonus (4984) 4984 TOTAL SCORE: 17572 Bonus ------- High Alert Combat Kills 58 Follower Combat Kills 1147 Entered Garrisons 1200 Used RIF Installer 3000 Aligned with FarCom 300 Friendly Fire -721 Cogmind --------- Core Integrity 1132/1150 Matter 255/300 Energy 76/300 System Corruption 0% Temperature Cool (12) Movement Rolling (150) Ox5 Location -4/Factory Parts ------- > --- POWER (1) -------- Angular Momentum Engine > --- PROPULSION (2) --- Armored Huge Wheel > --- UTILITY (14) ----- Advanced Heat Sink High-capacity Storage Unit Humpback Core Analyzer Hardened Medium Armor Plating Hardened Medium Armor Plating Layered Light Armor Plating Relay Coupler [NC] (15) Relay Coupler [Swarmer] (41) Relay Coupler [Swarmer] (5) Relay Coupler [Sentry] (5) > --- WEAPON (2) ------- Cooled Proton Cannon Ripper > --- INVENTORY (32) --- Light Nuclear Core Light Treads Armored Treads High-capacity Storage Unit Humpback Humpback Hardened Medium Armor Plating Damper Plating Damper Plating Relay Coupler [ARC] (9) Relay Coupler [Swarmer] (39) Relay Coupler [Brawler] (24) Relay Coupler [Sentry] (20) Shock Rifle Shock Rifle Gatling Laser Cooled Pulse Rifle Beamcaster Proton Cannon Long-range Proton Cannon Matter Neutralizer Matter Neutralizer Heavy Neutron Cannon Autogun Gauss Rifle Gauss Rifle Peak State ------------ > --- POWER ------------ Angular Momentum Engine > --- PROPULSION ------- Armored Huge Wheel > --- UTILITY ---------- Advanced Heat Sink High-capacity Storage Unit Humpback Humpback Core Analyzer Hardened Medium Armor Plating Hardened Medium Armor Plating Hardened Medium Armor Plating Layered Light Armor Plating Relay Coupler [Swarmer] Relay Coupler [Swarmer] Relay Coupler [Sentry] > --- WEAPON ----------- Heavy Neutron Cannon Heavy Neutron Cannon > --- INVENTORY -------- Light Nuclear Core Angular Momentum Engine Light Treads Armored Treads Advanced Treads Armored Medium Treads High-capacity Storage Unit Humpback Humpback High-capacity Matter Pod Hardened Medium Armor Plating Damper Plating Damper Plating Relay Coupler [NC] Relay Coupler [ARC] Relay Coupler [Swarmer] Relay Coupler [Brawler] Relay Coupler [Duelist] Relay Coupler [Sentry] Relay Coupler [Sentry] Relay Coupler [Sentry] System Backup Module Shock Rifle Shock Rifle Gatling Laser Cooled Pulse Rifle Cooled Pulse Rifle Cooled Pulse Rifle Cooled Pulse Rifle Beamcaster Proton Cannon Long-range Proton Cannon Long-range Proton Cannon Long-range Proton Cannon Matter Neutralizer Matter Neutralizer Matter Neutralizer Heavy Neutron Cannon Heavy Assault Rifle Autogun Gauss Rifle Gauss Rifle Remote Datajack Ripper [Rating: 84] Favorites ----------- Power Antimatter Reactor Engine Angular Momentum Engine Power Core Light Nuclear Core Reactor Antimatter Reactor Propulsion Armored Huge Wheel Treads Light Treads Wheel Armored Huge Wheel Utility Humpback Device Advanced Weight Redist. System Storage Humpback Processor Target Analyzer Hackware Relay Coupler [Swarmer] Protection Hardened Medium Armor Plating Weapon Light Assault Rifle Energy Gun Cooled Pulse Rifle Energy Cannon Cooled Particle Cannon Ballistic Gun Light Assault Rifle Launcher Grenade Launcher Special Weapon Remote Datajack Slashing Weapon Ripper Build | -11 -10 -10 -10 -9 -8 -8 -8 -8 -7 -7 -7 -7 -7 -7 -6 -6 -5 -5 -4 ------- Run | Scr Mat Min Exi Min Mat Gar Mat Gar Fac Was Fac Gar Fac Gar Fac Gar Fac Gar Fac Slots Evolved 12 | . . . . . 4 . . . 2 . . . . . 2 . 2 . 2 Power . | . . . . . . . . . . . . . . . . . . . . Propulsion . | . . . . . . . . . . . . . . . . . . . . Utility 12 | . . . . . 4 . . . 2 . . . . . 2 . 2 . 2 Weapon . | . . . . . . . . . . . . . . . . . . . . Parts Attached 177 | 6 2 1 3 1 7 6 . 12 14 5 7 17 8 34 12 17 3 8 14 Power 12 | 1 . 1 . . 1 . . 2 3 1 . 1 . 1 1 . . . . Engine 4 | 1 . 1 . . 1 . . . . . . . . . 1 . . . . Core 6 | . . . . . . . . 2 3 . . . . 1 . . . . . Reactor 2 | . . . . . . . . . . 1 . 1 . . . . . . . Propulsion 13 | 2 . . . 1 . 1 . . 2 . 2 . . 4 . . . 1 . Treads 7 | 2 . . . . . 1 . . 1 . 1 . . 2 . . . . . Leg . | . . . . . . . . . . . . . . . . . . . . Wheel 6 | . . . . 1 . . . . 1 . 1 . . 2 . . . 1 . Hover . | . . . . . . . . . . . . . . . . . . . . Flight . | . . . . . . . . . . . . . . . . . . . . Utility 78 | 1 2 . 3 . 3 1 . 2 7 4 2 7 5 13 8 12 3 1 4 Device 14 | . . . . . 2 . . . 2 . . 4 . . 2 3 . . 1 Storage 11 | 1 2 . 3 . . . . 1 1 1 . . . 1 . 1 . . . Processor 4 | . . . . . 1 . . 1 1 . . . . . . 1 . . . Hackware 16 | . . . . . . . . . . . 1 1 4 6 2 . 1 . 1 Protection 33 | . . . . . . 1 . . 3 3 1 2 1 6 4 7 2 1 2 Artifact . | . . . . . . . . . . . . . . . . . . . . Weapon 74 | 2 . . . . 3 4 . 8 2 . 3 9 3 16 3 5 . 6 10 Energy Gun 17 | . . . . . 1 . . . 1 . 1 3 1 3 . 2 . 2 3 Energy Cannon 20 | . . . . . . . . 2 . . 1 . 1 5 2 2 . 2 5 Ballistic Gun 16 | 2 . . . . 2 2 . 5 1 . . 4 . . . . . . . Ballistic Cannon . | . . . . . . . . . . . . . . . . . . . . Launcher 6 | . . . . . . 2 . 1 . . . 1 . 2 . . . . . Special Weapon 12 | . . . . . . . . . . . 1 1 . 5 1 1 . 2 1 Impact Weapon . | . . . . . . . . . . . . . . . . . . . . Slashing Weapon 3 | . . . . . . . . . . . . . 1 1 . . . . 1 Piercing Weapon . | . . . . . . . . . . . . . . . . . . . . Special Melee Weapon . | . . . . . . . . . . . . . . . . . . . . Unidentified Prototypes 3 | . . . . . 1 . . . 1 . . . . . . . . . 1 Parts Lost 7 | . . 1 . . . . . . 1 . . 1 1 1 . 1 . . 1 Power 2 | . . 1 . . . . . . . . . . . 1 . . . . . Propulsion . | . . . . . . . . . . . . . . . . . . . . Utility 4 | . . . . . . . . . 1 . . . 1 . . 1 . . 1 Weapon 1 | . . . . . . . . . . . . 1 . . . . . . . Highest Loss Streak 1 | . . 1 . . . . . . 1 . . 1 1 1 . 1 . . 1 Average Slot Usage (%) 81 | . 96 97 90 85 78 80 81 89 81 78 76 76 76 74 76 79 81 81 81 Engine 4 | . 14 12 14 14 9 9 9 2 . . . . . . 2 6 5 5 5 Core 1 | . . . . . . . . 6 7 . . . . 1 3 . . . . Reactor 2 | . . . . . . . . . . 6 7 7 7 5 . . . . . Treads 5 | . 28 28 28 21 9 9 9 9 4 . . . . . . . . . . Wheel 6 | . . . . 7 9 9 9 9 7 7 7 7 7 6 6 6 5 5 5 Device 6 | . . . . . 16 18 18 18 14 9 . 6 . . 4 4 . . 3 Storage 18 | . 24 28 18 14 9 9 9 11 15 20 23 23 23 23 20 20 17 17 15 Processor 4 | . . . . . 8 2 . 8 9 9 7 7 4 . . 2 5 5 5 Hackware 6 | . . . . . . . . . . . 6 1 14 15 15 13 16 17 18 Protection 6 | . . . . . . 6 9 6 5 7 7 6 3 5 8 12 17 16 16 Energy Gun 2 | . . . . . . . . . 3 . 6 6 . 5 3 . 11 9 5 Energy Cannon 2 | . . . . . . . . . . . 2 . . 4 3 11 . . 3 Ballistic Gun 9 | . 28 28 28 28 18 16 18 17 10 15 5 6 5 . . . . . . Naked Turns . | . . . . . . . . . . . . . . . . . . . . Heaviest Build 264 | 9 41 41 85 85 97 100 100 132 139 222 227 227 223 227 264 238 232 238 260 Greatest Support 70 | 40 40 40 40 40 21 29 21 29 37 37 70 28 28 42 37 37 28 28 28 Greatest Overweight (x) 10 | . 1 1 2 7 7 4 4 10 6 5 8 8 7 8 9 8 8 8 9 Average Overweight (x) 5 | . . 1 1 4 4 3 4 6 3 4 7 7 7 7 5 7 8 8 8 Largest Inventory Capacity 72 | 6 14 14 24 24 24 24 24 32 52 52 52 52 52 72 52 72 52 52 52 Average Capacity 40 | 5 11 14 21 24 24 24 24 26 32 46 52 52 52 52 52 52 52 52 52 Most Carried 52 | 6 10 10 24 24 24 24 24 29 32 52 52 52 52 51 52 52 52 52 52 Average Carried 38 | 4 8 9 18 24 23 24 24 24 31 44 51 51 51 48 49 51 50 51 49 Final Capacity 52 | 6 14 14 24 24 24 24 24 32 32 52 52 52 52 52 52 52 52 52 32 Final Carried 52 | 6 10 10 24 24 24 24 24 29 32 52 52 52 52 50 52 52 52 51 32 Class Distribution -------------------- 39% | Hauler-Mutant 29% | Bothacker-Mutant 15% | Botlord-Mutant 7% | Scavenger-Mutant 7% | Mutant Dominant Class ---------------- Mutant | -10/Materials Mutant | -10/Mines Hauler-Mutant | -10/Exiles Hauler-Mutant | -9/Mines Hauler-Mutant | -8/Materials Hauler-Mutant | -8/Garrison Hauler-Mutant | -8/Materials Scavenger-Mutant | -8/Garrison Hauler-Mutant | -7/Factory Hauler-Mutant | -7/Waste Hauler-Mutant | -7/Factory Bothacker-Mutant | -7/Garrison Bothacker-Mutant | -7/Factory Bothacker-Mutant | -7/Garrison Botlord-Mutant | -6/Factory Bothacker-Mutant | -6/Garrison Botlord-Mutant | -5/Factory Botlord-Mutant | -5/Garrison Botlord-Mutant | -4/Factory Resources | -11 -10 -10 -10 -9 -8 -8 -8 -8 -7 -7 -7 -7 -7 -7 -6 -6 -5 -5 -4 ----------- Run | Scr Mat Min Exi Min Mat Gar Mat Gar Fac Was Fac Gar Fac Gar Fac Gar Fac Gar Fac Matter Collected 3123 | 274 66 17 64 . 52 164 . 317 312 120 80 343 95 485 45 241 . 338 110 Remotely . | . . . . . . . . . . . . . . . . . . . . Salvage Created 3701 | 61 169 75 . . 52 281 60 317 549 . 155 186 110 362 45 614 . 382 283 Parts 176 | 2 8 3 . . 3 13 4 18 28 . 8 11 4 17 5 31 . 13 8 Haulers Intercepted 2 | . 1 . . . . . 1 . . . . . . . . . . . . Recyclers Shooed 5 | . 4 . . . . . 1 . . . . . . . . . . . . Parts Field Recycled . | . . . . . . . . . . . . . . . . . . . . Retrieved Matter . | . . . . . . . . . . . . . . . . . . . . Parts Self-Destructed . | . . . . . . . . . . . . . . . . . . . . Prevented . | . . . . . . . . . . . . . . . . . . . . Kills | -11 -10 -10 -10 -9 -8 -8 -8 -8 -7 -7 -7 -7 -7 -7 -6 -6 -5 -5 -4 ------- Run | Scr Mat Min Exi Min Mat Gar Mat Gar Fac Was Fac Gar Fac Gar Fac Gar Fac Gar Fac Combat Hostiles Destroyed 70 | . 3 2 . . 1 9 . 7 7 . 1 7 1 12 1 11 . 6 2 Melee 1 | . . . . . . . . . . . . . . . . . . . 1 Guns 34 | . 3 2 . . 1 4 . 6 7 . 1 3 . 3 . . . 4 . Cannons 18 | . . . . . . . . . . . . . . 3 1 11 . 2 1 AOE 17 | . . . . . . 5 . 1 . . . 4 1 6 . . . . . Classes Destroyed 11 | 1 2 1 . . 1 1 . 1 2 . 1 1 . . . . . . . Worker 2 | . . . . . . . . . 2 . . . . . . . . . . Hauler 2 | . 1 . . . . . 1 . . . . . . . . . . . . Recycler 5 | 1 1 . . . . . . . 2 . . . . . . . . . 1 Swarmer 16 | . 3 . . . . 3 . . . . . 4 . 4 . 2 . . . Grunt 31 | . . 2 . . . 3 . 5 3 . . 2 1 7 . 2 . 4 2 Brawler 4 | . . . . . . 2 . . . . . . . . . 2 . . . Duelist 2 | . . . . . . . . . . . . 1 . . . 1 . . . Sentry 7 | . . . . . 1 1 . 1 1 . . . 1 . . 2 . . . Hunter 6 | . . . . . . . . 1 . . . . . 1 . 2 . 2 . Programmer 5 | . . . . . . . . . 3 . 1 . . . 1 . . . . Martyr 2 | . . . . . . . . . . . 2 . . . . . . . . Best Kill Streak 6 | 1 4 2 . . 1 3 1 3 6 . 1 4 1 4 1 3 . 2 1 Combat Bots Only 4 | . 3 2 . . 1 3 . 3 4 . 1 4 1 4 1 3 . 2 1 Max Kills in Single Turn 3 | 1 1 1 . . 1 3 1 1 2 . 1 2 1 2 1 1 . 1 1 Gunslinging . | . . . . . . . . . . . . . . . . . . . . Exploded 3 | . . . . . . 3 . 1 . . . 2 1 2 . . . . . Melee 1 | . . . . . . . . . . . . . . . . . . . 1 Uniques/NPCs Destroyed . | . . . . . . . . . . . . . . . . . . . . Combat | -11 -10 -10 -10 -9 -8 -8 -8 -8 -7 -7 -7 -7 -7 -7 -6 -6 -5 -5 -4 -------- Run | Scr Mat Min Exi Min Mat Gar Mat Gar Fac Was Fac Gar Fac Gar Fac Gar Fac Gar Fac Damage Taken 5809 | . 42 110 . . 18 137 . 755 490 . 30 767 163 816 78 982 . 647 774 Core 427 | . 17 15 . . . 18 . 25 16 . 15 40 5 136 6 82 . 34 18 Absorbed by Shields 132 | . . . . . . . . 122 . . . . . . . 10 . . . Core Remaining (%) 88 | 100 . . . 87 . . . 92 . . . . . 69 . 89 . 96 . Volleys Fired 320 | 7 23 6 1 . 3 11 8 49 27 . 8 31 6 46 10 43 . 25 16 Largest 2 | 2 2 2 2 . 2 2 2 2 2 . 2 2 1 2 2 2 . 2 2 Hottest 220 | 40 40 40 40 . 40 50 43 56 48 . 100 108 69 125 60 120 . 162 220 Shots Fired 558 | 14 46 12 2 . 6 20 16 88 54 . 15 56 6 58 11 85 . 45 24 Gun 367 | 14 46 12 2 . 6 16 16 78 54 . 14 53 . 17 . 2 . 35 2 Cannon 136 | . . . . . . . . 8 . . . . 1 18 3 82 . 6 18 Launcher 14 | . . . . . . 4 . 2 . . . 2 . 6 . . . . . Special 41 | . . . . . . . . . . . 1 1 5 17 8 1 . 4 4 Kinetic 255 | 14 46 12 2 . 6 16 16 78 28 . 7 30 . . . . . . . Thermal 209 | . . . . . . . . . 26 . 7 23 . 23 3 84 . 35 8 Explosive 14 | . . . . . . 4 . 2 . . . 2 . 6 . . . . . Electromagnetic 39 | . . . . . . . . 8 . . . . 1 12 . . . 6 12 Robot Hit Streak 18 | 4 14 13 . . 18 3 5 8 15 . 10 14 7 17 7 9 . 12 4 Robot Miss Streak 3 | 2 2 . . . . 2 3 2 1 . 1 2 . 2 1 2 . 2 2 Penetration Max . | . . . . . . . . . . . . . . . . . . . . Secondary Targets 3 | . . . . . . 2 . . 1 . . . . . . . . . . Max Gunslinging Chain 1 | . . . . . . 1 . . 1 . . . . . . . . . . Shots Hit Robots 372 | 10 33 12 . . 5 7 8 44 45 . 12 38 7 40 8 55 . 33 15 Core Hits 173 | 3 11 6 . . 3 16 3 16 19 . 7 16 2 25 2 23 . 16 5 Critical Hits 3 | . . . . . . . . . . . . 2 1 . . . . . . Critical Kills . | . . . . . . . . . . . . . . . . . . . . Critical Parts Destroyed 3 | . . . . . . . . . . . . 2 1 . . . . . . Melee Attacks 4 | . . . . . . . . . . . . . 2 . . . . . 2 Impact . | . . . . . . . . . . . . . . . . . . . . Slashing 4 | . . . . . . . . . . . . . 2 . . . . . 2 Piercing . | . . . . . . . . . . . . . . . . . . . . Sneak Attacks 2 | . . . . . . . . . . . . . 2 . . . . . . Combat Hostiles . | . . . . . . . . . . . . . . . . . . . . Follow-up Attacks . | . . . . . . . . . . . . . . . . . . . . Damage Inflicted 7922 | 79 236 96 . . 42 394 94 789 943 . 237 1031 348 1096 58 1320 . 627 532 Guns 3949 | 79 236 96 . . 42 105 94 672 943 . 237 779 . 188 . . . 478 . Cannons 2401 | . . . . . . . . 46 . . . . . 328 58 1320 . 149 500 Explosions 1306 | . . . . . . 289 . 71 . . . 252 114 580 . . . . . Melee 266 | . . . . . . . . . . . . . 234 . . . . . 32 Ramming . | . . . . . . . . . . . . . . . . . . . . Kinetic 2228 | 79 236 96 . . 42 105 94 672 384 . 85 435 . . . . . . . Thermal 3550 | . . . . . . . . . 559 . 152 344 114 326 58 1320 . 478 199 Explosive 1192 | . . . . . . 289 . 71 . . . 252 . 580 . . . . . Electromagnetic 686 | . . . . . . . . 46 . . . . . 190 . . . 149 301 Impact . | . . . . . . . . . . . . . . . . . . . . Slashing 266 | . . . . . . . . . . . . . 234 . . . . . 32 Piercing . | . . . . . . . . . . . . . . . . . . . . Highest Corruption 5 | . . . . . 2 2 2 2 3 3 3 3 . . . 5 . . . Average Corruption 2 | . . . . . 2 2 2 2 2 3 3 2 . . . 4 . . . Corruption Purged 4 | . . . . . . . . . . . . 3 . . . 1 . . . Effects 72 | . . . . . 2 6 4 18 3 14 12 4 . . . 9 . . . Message Errors 19 | . . . . . 1 3 2 5 2 2 1 1 . . . 2 . . . Matter Fused 13 | . . . . . . . . . 1 1 6 . . . . 5 . . . Heat Flow Errors 15 | . . . . . . 2 1 6 . 3 1 1 . . . 1 . . . Energy Discharges 7 | . . . . . . . . 4 . 2 1 . . . . . . . . Data Loss (minor) 15 | . . . . . 1 1 1 2 . 6 3 1 . . . . . . . Data Loss (major) 1 | . . . . . . . . . . . . . . . . 1 . . . Targeting Errors 2 | . . . . . . . . 1 . . . 1 . . . . . . . Overload Shots 1 | . . . . . . . . . . . . . . . . 1 . . . Overflow Damage 22 | . . . . . . . . . . . . . . 12 . 10 . . . Projectiles 10 | . . . . . . . . . . . . . . . . 10 . . . Explosions 12 | . . . . . . . . . . . . . . 12 . . . . . Melee . | . . . . . . . . . . . . . . . . . . . . Knockbacks . | . . . . . . . . . . . . . . . . . . . . Impact . | . . . . . . . . . . . . . . . . . . . . Kinetic . | . . . . . . . . . . . . . . . . . . . . Secondary . | . . . . . . . . . . . . . . . . . . . . Self-Inflicted Damage . | . . . . . . . . . . . . . . . . . . . . Shots . | . . . . . . . . . . . . . . . . . . . . Rammed . | . . . . . . . . . . . . . . . . . . . . Targets Rammed . | . . . . . . . . . . . . . . . . . . . . Kicked . | . . . . . . . . . . . . . . . . . . . . Crushed . | . . . . . . . . . . . . . . . . . . . . Highest Temperature 375 | . . 18 . . . 176 240 336 15 258 205 221 18 252 18 216 . 204 375 Average Temperature 75 | . . 9 . . . 74 130 88 5 124 61 115 8 70 7 58 . 40 115 Received Heat Transfer 1515 | . . 69 . . . 27 . 228 108 . 12 219 63 162 24 282 . 198 123 Effects 4 | . . . . . . . . 2 . . . . . 1 . . . . 1 Energy Bleed 1 | . . . . . . . . . . . . . . 1 . . . . . Interference 2 | . . . . . . . . 2 . . . . . . . . . . . Short Circuit 1 | . . . . . . . . . . . . . . . . . . . 1 Siege Activations . | . . . . . . . . . . . . . . . . . . . . Robots Corrupted . | . . . . . . . . . . . . . . . . . . . . Combat Hostiles . | . . . . . . . . . . . . . . . . . . . . Parts Fried 5 | . . . . . . . . . . . . . . . . . . 2 3 Impact Corruptions . | . . . . . . . . . . . . . . . . . . . . Robots Melted . | . . . . . . . . . . . . . . . . . . . . Combat Hostiles . | . . . . . . . . . . . . . . . . . . . . Parts Melted 13 | . . . . . . . . . 3 . . 2 . 2 . 3 . 3 . Heat Transferred 5311 | . . . . . . . . . 962 . 259 592 50 536 74 1813 . 925 100 Parts Sabotaged . | . . . . . . . . . . . . . . . . . . . . Parts Stolen . | . . . . . . . . . . . . . . . . . . . . Parts Stripped . | . . . . . . . . . . . . . . . . . . . . Power Chain Reactions . | . . . . . . . . . . . . . . . . . . . . Missiles Intercepted . | . . . . . . . . . . . . . . . . . . . . Alert | -11 -10 -10 -10 -9 -8 -8 -8 -8 -7 -7 -7 -7 -7 -7 -6 -6 -5 -5 -4 ------- Run | Scr Mat Min Exi Min Mat Gar Mat Gar Fac Was Fac Gar Fac Gar Fac Gar Fac Gar Fac Peak Influence 547 | 5 115 90 . 6 46 323 216 547 414 61 94 379 372 463 257 472 247 290 309 Initial 287 | . 3 44 . . 1 32 157 140 287 61 . . 198 154 242 46 247 172 151 Average 211 | . 72 81 . . 29 223 177 333 267 33 39 277 249 255 122 322 247 237 206 Maximum Alert Level 2 | . . . . . . 1 1 2 2 . . 1 1 2 1 2 1 1 1 Low Security (%) 41 | 100 100 100 . 100 100 33 74 8 22 100 100 12 11 36 71 7 . 21 40 Level 1 50 | . . . . . . 66 25 60 77 . . 87 88 39 28 79 100 78 59 Level 2 8 | . . . . . . . . 31 . . . . . 23 . 13 . . . Level 3 . | . . . . . . . . . . . . . . . . . . . . Level 4 . | . . . . . . . . . . . . . . . . . . . . Level 5 . | . . . . . . . . . . . . . . . . . . . . High Security . | . . . . . . . . . . . . . . . . . . . . Max Security . | . . . . . . . . . . . . . . . . . . . . Squads Dispatched 10 | . . . . . . . . . 3 . 1 . 2 . 2 . . . 2 Investigation 1 | . . . . . . . . . 1 . . . . . . . . . . Extermination 4 | . . . . . . . . . 2 . 1 . . . 1 . . . . Reinforcement 3 | . . . . . . . . . . . . . . . 1 . . . 2 Assault . | . . . . . . . . . . . . . . . . . . . . Garrison 2 | . . . . . . . . . . . . . 2 . . . . . . Intercept . | . . . . . . . . . . . . . . . . . . . . Construction Impeded 1 | . . . . . . . . . . . . . . . . . . . 1 Haulers Reinforced 1 | . . . . . . . . . . . . . . . . . . . 1 Stealth | -11 -10 -10 -10 -9 -8 -8 -8 -8 -7 -7 -7 -7 -7 -7 -6 -6 -5 -5 -4 --------- Run | Scr Mat Min Exi Min Mat Gar Mat Gar Fac Was Fac Gar Fac Gar Fac Gar Fac Gar Fac Distress Signals 2 | . . . . . . . . . . . 2 . . . . . . . . Communications Jammed . | . . . . . . . . . . . . . . . . . . . . Distress Signals . | . . . . . . . . . . . . . . . . . . . . Times Spotted 151 | . 9 2 . . 1 7 4 13 7 . 3 18 9 28 6 23 . 10 11 Peak Tracking Total 6 | . 3 2 . . 1 4 4 3 2 . 2 4 3 6 2 4 1 6 6 Tactical Retreats 11 | . . . . . . . . 4 . . . 1 . 2 . 2 . 2 . Traps | -11 -10 -10 -10 -9 -8 -8 -8 -8 -7 -7 -7 -7 -7 -7 -6 -6 -5 -5 -4 ------- Run | Scr Mat Min Exi Min Mat Gar Mat Gar Fac Was Fac Gar Fac Gar Fac Gar Fac Gar Fac Traps Triggered 33 | . . . . . . 4 . 9 1 . . 2 . 8 . 5 . 4 . Indirectly . | . . . . . . . . . . . . . . . . . . . . Trap Hack Attempts . | . . . . . . . . . . . . . . . . . . . . Triggered . | . . . . . . . . . . . . . . . . . . . . Disarmed . | . . . . . . . . . . . . . . . . . . . . Reprogrammed . | . . . . . . . . . . . . . . . . . . . . Reused . | . . . . . . . . . . . . . . . . . . . . Traps Extracted . | . . . . . . . . . . . . . . . . . . . . Installed . | . . . . . . . . . . . . . . . . . . . . Triggered 1 | . . . . . . . . . . . . . . 1 . . . . . Machines | -11 -10 -10 -10 -9 -8 -8 -8 -8 -7 -7 -7 -7 -7 -7 -6 -6 -5 -5 -4 ---------- Run | Scr Mat Min Exi Min Mat Gar Mat Gar Fac Was Fac Gar Fac Gar Fac Gar Fac Gar Fac Machines Disabled 20 | . . . . . . . . 4 . . . 2 7 2 . 2 . . 3 Max in Single Turn 3 | . . . . . . . . 2 . . . 1 3 1 . 1 . . 1 Garrison Relay 7 | . . . . . . . . 2 . . . 2 . 2 . 1 . . . Phase Generator 1 | . . . . . . . . 1 . . . . . . . . . . . Machines Sabotaged . | . . . . . . . . . . . . . . . . . . . . Garrisons Compromised . | . . . . . . . . . . . . . . . . . . . . Overloaded Fab Kills . | . . . . . . . . . . . . . . . . . . . . Fab Network Shutdowns . | . . . . . . . . . . . . . . . . . . . . Hacking | -11 -10 -10 -10 -9 -8 -8 -8 -8 -7 -7 -7 -7 -7 -7 -6 -6 -5 -5 -4 --------- Run | Scr Mat Min Exi Min Mat Gar Mat Gar Fac Was Fac Gar Fac Gar Fac Gar Fac Gar Fac Machines Accessed 25 | . 1 1 1 1 1 . 4 . 4 . 3 . 3 . 3 . 2 . 1 Terminals 9 | . 1 1 . 1 . . 2 . 1 . 1 . . . 1 . 1 . . Fabricators 6 | . . . . . . . . . 2 . . . 2 . 1 . . . 1 Repair Stations 1 | . . . . . . . . . 1 . . . . . . . . . . Recycling Units . | . . . . . . . . . . . . . . . . . . . . Scanalyzers 2 | . . . . . . . 1 . . . 1 . . . . . . . . Garrison Access 6 | . . . . . 1 . 1 . . . 1 . 1 . 1 . 1 . . Total Hacks 47 | . 1 3 1 2 1 . 9 . 12 . 4 . 4 . 6 . 2 . 2 Successful 24 | . . 1 1 1 1 . 4 . 5 . 4 . 3 . 2 . 1 . 1 Failed 23 | . 1 2 . 1 . . 5 . 7 . . . 1 . 4 . 1 . 1 Catastrophic 4 | . . . . 1 . . . . 1 . . . . . 1 . 1 . . Database Lockouts . | . . . . . . . . . . . . . . . . . . . . Manual 7 | . . 3 1 2 . . . . . . . . . . . . 1 . . Terminals 19 | . 1 3 . 2 . . 6 . 3 . 1 . . . 2 . 1 . . Fabricators 14 | . . . . . . . . . 6 . . . 3 . 3 . . . 2 Repair Stations 3 | . . . . . . . . . 3 . . . . . . . . . . Recycling Units . | . . . . . . . . . . . . . . . . . . . . Scanalyzers 4 | . . . . . . . 2 . . . 2 . . . . . . . . Garrison Access 6 | . . . . . 1 . 1 . . . 1 . 1 . 1 . 1 . . Terminal Hacks 6 | . . 1 1 1 . . 1 . 1 . 1 . . . . . . . . Robot Analysis 2 | . . 1 . 1 . . . . . . . . . . . . . . . Unreport Threat 1 | . . . . . . . . . 1 . . . . . . . . . . Locate Traps 1 | . . . . . . . . . . . 1 . . . . . . . . Registered Components 1 | . . . . . . . 1 . . . . . . . . . . . . EX-Prototype ID Bank 1 | . . . 1 . . . . . . . . . . . . . . . . Fabricator Hacks 7 | . . . . . . . . . 3 . . . 2 . 1 . . . 1 Load Schematic 4 | . . . . . . . . . 1 . . . 1 . 1 . . . 1 Build 3 | . . . . . . . . . 2 . . . 1 . . . . . . Repair Station Hacks 1 | . . . . . . . . . 1 . . . . . . . . . . Scan Component 1 | . . . . . . . . . 1 . . . . . . . . . . Recycling Unit Hacks . | . . . . . . . . . . . . . . . . . . . . Scanalyzer 4 | . . . . . . . 2 . . . 2 . . . . . . . . Insert Component 2 | . . . . . . . 1 . . . 1 . . . . . . . . Analyze 2 | . . . . . . . 1 . . . 1 . . . . . . . . Garrison Access Hacks 6 | . . . . . 1 . 1 . . . 1 . 1 . 1 . 1 . . Unlock Access 6 | . . . . . 1 . 1 . . . 1 . 1 . 1 . 1 . . Unauthorized Hacks . | . . . . . . . . . . . . . . . . . . . . Terminals . | . . . . . . . . . . . . . . . . . . . . Fabricators . | . . . . . . . . . . . . . . . . . . . . Repair Stations . | . . . . . . . . . . . . . . . . . . . . Recycling Units . | . . . . . . . . . . . . . . . . . . . . Scanalyzers . | . . . . . . . . . . . . . . . . . . . . Garrison Access . | . . . . . . . . . . . . . . . . . . . . Data Cores Recovered 1 | . . . . . . . . . . . . . . . 1 . . . . Used . | . . . . . . . . . . . . . . . . . . . . Hacking Detections 17 | . 1 1 . 1 . . 3 . 4 . . . 2 . 3 . 1 . 1 Full Trace Events 1 | . . . . . . . . . 1 . . . . . . . . . . Feedback Events . | . . . . . . . . . . . . . . . . . . . . Feedback Blocked . | . . . . . . . . . . . . . . . . . . . . Robot Schematics Acquired . | . . . . . . . . . . . . . . . . . . . . Robots Built . | . . . . . . . . . . . . . . . . . . . . Matter . | . . . . . . . . . . . . . . . . . . . . Time . | . . . . . . . . . . . . . . . . . . . . Total Robot Build Rating . | . . . . . . . . . . . . . . . . . . . . Part Schematics Acquired 2 | . . . . . . . 1 . . . 1 . . . . . . . . Parts Built 4 | . . . . . . . . . 2 . . . 2 . . . . . . Matter 372 | . . . . . . . . . 204 . . . 168 . . . . . . Time 92 | . . . . . . . . . 50 . . . 42 . . . . . . Total Part Build Rating 10 | . . . . . . . . . 2 . . . 8 . . . . . . Parts Repaired . | . . . . . . . . . . . . . . . . . . . . Time . | . . . . . . . . . . . . . . . . . . . . Parts Recycled . | . . . . . . . . . . . . . . . . . . . . Recycled Matter . | . . . . . . . . . . . . . . . . . . . . Retrieved Matter . | . . . . . . . . . . . . . . . . . . . . Retrieved Components . | . . . . . . . . . . . . . . . . . . . . Parts Scanalyzed 2 | . . . . . . . 1 . . . 1 . . . . . . . . Part Schematics Acquired 2 | . . . . . . . 1 . . . 1 . . . . . . . . Parts Damaged . | . . . . . . . . . . . . . . . . . . . . Bothacking | -11 -10 -10 -10 -9 -8 -8 -8 -8 -7 -7 -7 -7 -7 -7 -6 -6 -5 -5 -4 ------------ Run | Scr Mat Min Exi Min Mat Gar Mat Gar Fac Was Fac Gar Fac Gar Fac Gar Fac Gar Fac Used RIF Installer 6 | . . . . . . 1 . 1 . . . 1 . 1 . 1 . 1 . Command Fork 2 | . . . . . . . . . . . . 1 . . . . . 1 . Signal Jammer 1 | . . . . . . . . . . . . . . 1 . . . . . Zone Cloak 1 | . . . . . . . . 1 . . . . . . . . . . . Autoassimilate 1 | . . . . . . . . . . . . . . . . 1 . . . Robots Hacked 31 | . . . . . . . . . . . 1 1 4 12 6 1 . 3 3 Non-combat 8 | . . . . . . . . . . . 1 . 1 . 4 . . . 2 Combat 23 | . . . . . . . . . . . . 1 3 12 2 1 . 3 1 Autoassimilated 2 | . . . . . . . . . . . . . . . . . . 1 1 Robot Hacks Applied 31 | . . . . . . . . . . . 1 1 5 12 7 1 . 2 2 ignore_repairs 1 | . . . . . . . . . . . . . . . . . . . 1 drop_inventory 3 | . . . . . . . . . . . 1 . 1 . 1 . . . . check_alert 1 | . . . . . . . . . . . . . . . 1 . . . . purge_threat 1 | . . . . . . . . . . . . . . . 1 . . . . map_route 2 | . . . . . . . . . . . . . . . 1 . . . 1 find_garrison 2 | . . . . . . . . . . . . . 1 . 1 . . . . amplify_resonance 1 | . . . . . . . . . . . . . . 1 . . . . . overwrite_iff 6 | . . . . . . . . . . . . . . 3 . 1 . 2 . streamctrl_high 2 | . . . . . . . . . . . . . 1 1 . . . . . formatsys_high 12 | . . . . . . . . . . . . 1 2 7 2 . . . . Relay Couplers Released 25 | . . . . . . . . 6 . . . 9 . 6 . 4 . . . Machine Destruction 25 | . . . . . . . . 6 . . . 9 . 6 . 4 . . . Attached 16 | . . . . . . . . . . . 1 1 4 6 2 . 1 . 1 Robots Rewired 9 | . . . . . . . . . . . . . . . . 9 . . . Allies Hacked . | . . . . . . . . . . . . . . . . . . . . Hacks Repelled . | . . . . . . . . . . . . . . . . . . . . Allies | -11 -10 -10 -10 -9 -8 -8 -8 -8 -7 -7 -7 -7 -7 -7 -6 -6 -5 -5 -4 -------- Run | Scr Mat Min Exi Min Mat Gar Mat Gar Fac Was Fac Gar Fac Gar Fac Gar Fac Gar Fac Total Allies 52 | . . . . . . . . . . 20 . 1 3 12 2 10 . 3 1 Largest Group 20 | . . . . . . . . . . 20 20 13 2 2 2 7 . 2 1 Highest-Rated Group 539 | . . . . . . . . . . 539 539 348 64 64 64 164 . 24 49 Highest-Rated Ally 49 | . . . . . . . . . . 35 35 33 32 32 32 38 . 12 49 Total Orders 2 | . . . . . . . . . . . . . . . . 2 . . . ROAM 1 | . . . . . . . . . . . . . . . . 1 . . . FOLLOW 1 | . . . . . . . . . . . . . . . . 1 . . . Ally Attacks 246 | . . . . . . . . . . . 48 63 11 40 6 52 . 4 22 Total Damage 5463 | . . . . . . . . . . . 576 1082 654 997 47 1524 . 31 552 Kills 42 | . . . . . . . . . . . 3 11 5 5 1 12 . 1 4 Allies Corrupted . | . . . . . . . . . . . . . . . . . . . . Allies Melted 1 | . . . . . . . . . . . . . 1 . . . . . . Intel | -11 -10 -10 -10 -9 -8 -8 -8 -8 -7 -7 -7 -7 -7 -7 -6 -6 -5 -5 -4 ------- Run | Scr Mat Min Exi Min Mat Gar Mat Gar Fac Was Fac Gar Fac Gar Fac Gar Fac Gar Fac Robot Analysis Total 2 | . . 1 . 1 . . . . . . . . . . . . . . . Derelict Logs Recovered . | . . . . . . . . . . . . . . . . . . . . Drone Launches . | . . . . . . . . . . . . . . . . . . . . Drone Recoveries . | . . . . . . . . . . . . . . . . . . . . Exploration | -11 -10 -10 -10 -9 -8 -8 -8 -8 -7 -7 -7 -7 -7 -7 -6 -6 -5 -5 -4 ------------- Run | Scr Mat Min Exi Min Mat Gar Mat Gar Fac Was Fac Gar Fac Gar Fac Gar Fac Gar Fac Turns Passed 11776 | 122 386 70 852 142 206 668 231 1397 662 717 911 912 468 1164 558 1202 253 573 282 Spaces Moved 5557 | 63 179 30 428 79 136 342 160 555 263 466 486 402 199 531 285 453 138 248 114 Core 10 | 10 . . . . . . . . . . . . . . . . . . . Treads 1332 | 53 179 30 428 37 . 158 . 282 145 . 1 . . 19 . . . . . Legs . | . . . . . . . . . . . . . . . . . . . . Wheels 4215 | . . . . 42 136 184 160 273 118 466 485 402 199 512 285 453 138 248 114 Hover . | . . . . . . . . . . . . . . . . . . . . Flight . | . . . . . . . . . . . . . . . . . . . . Fastest Speed 50 | 50 160 180 160 160 130 130 130 130 130 130 150 170 170 170 150 160 180 180 180 Average Speed 174 | 142 173 180 192 178 133 171 130 214 191 144 170 177 170 175 153 170 180 180 180 Slowest Speed 280 | 160 180 180 200 200 160 220 130 280 240 150 220 180 170 257 190 180 180 180 190 Overloaded Moves . | . . . . . . . . . . . . . . . . . . . . Propulsion Burnouts . | . . . . . . . . . . . . . . . . . . . . Robots Hopped . | . . . . . . . . . . . . . . . . . . . . Cave-ins Triggered . | . . . . . . . . . . . . . . . . . . . . Exploration Rate (%) 34 | 5 37 6 70 29 19 58 25 71 8 96 14 59 8 72 8 51 5 38 5 Regions Visited 19 Branch Regions 3 Pre-discovered Areas . | . . . . . . . . . . . . . . . . . . . . Known Exits Taken 6 | . . . . . 1 . 1 . . . 1 . 1 . 1 . 1 . . Unknown Exits Taken 5 | 1 1 1 1 1 . . . . . . . . . . . . . . . Scrap Searched . | . . . . . . . . . . . . . . . . . . . . Spaces Dug 6 | . . . . . . . . . . . . 6 . . . . . . . Terrain Destroyed 120 | . . . . . . 1 . 77 . . . 6 11 22 . 1 . . 2 Melee . | . . . . . . . . . . . . . . . . . . . . Projectile 4 | . . . . . . . . 1 . . . . . . . 1 . . 2 AOE 116 | . . . . . . 1 . 76 . . . 6 11 22 . . . . . Terrain Rammed . | . . . . . . . . . . . . . . . . . . . . Walls Destroyed . | . . . . . . . . . . . . . . . . . . . . Machines Disabled . | . . . . . . . . . . . . . . . . . . . . Actions | -11 -10 -10 -10 -9 -8 -8 -8 -8 -7 -7 -7 -7 -7 -7 -6 -6 -5 -5 -4 --------- Run | Scr Mat Min Exi Min Mat Gar Mat Gar Fac Was Fac Gar Fac Gar Fac Gar Fac Gar Fac Total 7150 | 81 223 37 458 79 158 405 170 677 375 515 556 545 321 707 397 804 142 335 165 Wait 566 | . 5 . . . . 29 . 38 50 11 43 60 94 24 77 114 . 12 9 Move 5543 | 62 178 29 427 78 136 341 160 553 263 465 486 401 199 530 285 452 138 246 114 Hop . | . . . . . . . . . . . . . . . . . . . . Pick Up 153 | 6 9 1 24 . 6 1 1 6 7 22 5 10 7 15 8 14 1 6 4 Fast Attach 30 | 6 1 . . . 1 1 . 2 7 3 1 1 1 1 1 2 . . 2 Attach 48 | . . 1 1 . 3 . . 1 1 1 2 7 1 11 6 5 2 2 4 Detach . | . . . . . . . . . . . . . . . . . . . . Swap 99 | . 1 . 2 1 3 5 . 9 6 1 4 9 6 22 5 10 1 6 8 Drop 111 | . 6 . 3 . 6 3 1 5 14 12 7 9 5 9 5 14 . 6 6 Fire 320 | 7 23 6 1 . 3 11 8 49 27 . 8 31 6 46 10 43 . 25 16 Melee 4 | . . . . . . . . . . . . . 2 . . . . . 2 Ram . | . . . . . . . . . . . . . . . . . . . . Kick . | . . . . . . . . . . . . . . . . . . . . Crush . | . . . . . . . . . . . . . . . . . . . . Escape Stasis 163 | . . . . . . 14 . 14 . . . 16 . 48 . 39 . 32 . Rewire 113 | . . . . . . . . . . . . 1 . 1 . 111 . . . Trap . | . . . . . . . . . . . . . . . . . . . . Miscellaneous . | . . . . . . . . . . . . . . . . . . . . Route ------- -11/Scrapyard -10/Materials -10/Mines -10/Exiles -9/Mines -8/Materials -8/Garrison (discovered 3 exits: *Mat x3) -8/Materials -8/Garrison (discovered 2 exits: *Fac x2) -7/Factory -7/Waste -7/Factory (discovered 2 exits: [*Low] / Gar) -7/Garrison (discovered 2 exits: *Fac x2) -7/Factory -7/Garrison (discovered 3 exits: *Fac x3) -6/Factory (discovered 2 exits: [*Low] / Gar) -6/Garrison (discovered 2 exits: *Fac x2) -5/Factory -5/Garrison -4/Factory History --------- Turn | Location | Event 8 | -11/Scrapyard | Discovered new exit (range 15) 123 | -11/Scrapyard | Entered Materials 310 | -10/Materials | Build established: Mutant 482 | -10/Materials | Discovered new exit (range 11) 509 | -10/Materials | Entered Mines 572 | -10/Mines | Deemed a non-threat by the Exiles lab entrance 572 | -10/Mines | Discovered new exit (range 5) 579 | -10/Mines | Entered Exiles 623 | -10/Exiles | Met 8R-AWN 655 | -10/Exiles | Met EX-HEX 768 | -10/Exiles | Met EX-DEC 1101 | -10/Exiles | Met EX-BIN 1129 | -10/Exiles | Aligned with FarCom system 1131 | -10/Exiles | Given EX-Vault access code 1132 | -10/Exiles | Build established: Hauler-Mutant 1177 | -10/Exiles | Opened EX-Vault 1191 | -10/Exiles | Found Cloak of Protection 1194 | -10/Exiles | Found 0b10 Alert Chip 1239 | -10/Exiles | Warned to stay clear of 0b10 Research branches 1409 | -10/Exiles | Discovered new exit (range 14) 1431 | -10/Exiles | Stole two prototypes: 0b10 Alert Chip, Cloak of Protection 1431 | -10/Exiles | Entered Mines 1553 | -9/Mines | Discovered new exit (range 9) 1573 | -9/Mines | Entered Materials 1573 | -8/Materials | Evolved 4 slots: Utility x4 1779 | -8/Materials | Identified exit to Garrison 1779 | -8/Materials | Entered Garrison 1876 | -8/Garrison | Triggered checkpoint 1907 | -8/Garrison | Discovered new exit (range 8) 1959 | -8/Garrison | Triggered checkpoint 2088 | -8/Garrison | Discovered new exit (range 8) 2261 | -8/Garrison | Triggered checkpoint 2416 | -8/Garrison | Discovered new exit (range 12) 2439 | -8/Garrison | Installed Relay Interface Framework 2447 | -8/Garrison | Entered Materials 2678 | -8/Materials | Identified exit to Garrison 2678 | -8/Materials | Entered Garrison 2790 | -8/Garrison | Triggered checkpoint 2794 | -8/Garrison | Triggered checkpoint 2955 | -8/Garrison | Discovered new exit (range 14) 3005 | -8/Garrison | Expanded RIF knowledge: Zone Cloak 3052 | -8/Garrison | Build established: Scavenger-Mutant 3146 | -8/Garrison | Triggered checkpoint 3245 | -8/Garrison | Discovered new exit (range 14) 3523 | -8/Garrison | Phase Generator disabled 3562 | -8/Garrison | Triggered checkpoint 3638 | -8/Garrison | Garrison Relay disabled 3845 | -8/Garrison | Triggered checkpoint 3896 | -8/Garrison | Garrison Relay disabled 3930 | -8/Garrison | Build established: Hauler-Mutant 4075 | -8/Garrison | Entered Factory 4075 | -7/Factory | Evolved 2 slots: Utility x2 4077 | -7/Factory | FarCom data flow suspended 4638 | -7/Factory | Fabricated Humpback (x1) 4675 | -7/Factory | Fabricated Humpback (x1) 4737 | -7/Factory | Sucked down chute 4737 | -7/Factory | Entered Waste 4738 | -7/Waste | Joined by Warlord forces that had cleared the area 4836 | -7/Waste | Build established: Bothacker-Mutant 5084 | -7/Waste | Found Damper Plating 5230 | -7/Waste | Build established: Hauler-Mutant 5279 | -7/Waste | Discovered new exit (range 16) 5311 | -7/Waste | Found Damper Plating 5454 | -7/Waste | Entered Factory 5454 | -7/Factory | Accompanied by 20 allies 5754 | -7/Factory | Discovered new exit (range 6) 6344 | -7/Factory | Identified exit to Garrison 6365 | -7/Factory | Entered Garrison 6365 | -7/Garrison | Accompanied by 13 allies 6442 | -7/Garrison | Triggered checkpoint 6481 | -7/Garrison | Garrison Relay disabled 6572 | -7/Garrison | Triggered checkpoint 6578 | -7/Garrison | Triggered checkpoint 6738 | -7/Garrison | Discovered new exit (range 8) 6780 | -7/Garrison | Build established: Bothacker-Mutant 6874 | -7/Garrison | Discovered new exit (range 14) 6914 | -7/Garrison | Expanded RIF knowledge: Command Fork 7138 | -7/Garrison | Triggered checkpoint 7198 | -7/Garrison | Garrison Relay disabled 7277 | -7/Garrison | Entered Factory 7277 | -7/Factory | Accompanied by 1 ally 7460 | -7/Factory | Fabricated Arm. Huge Wheel (x2) 7579 | -7/Factory | Garrison activated, responded to threat 7745 | -7/Factory | Identified exit to Garrison 7745 | -7/Factory | Entered Garrison 7828 | -7/Garrison | Triggered checkpoint 7840 | -7/Garrison | Spotted B-75 Beast 7980 | -7/Garrison | Triggered checkpoint 7982 | -7/Garrison | Triggered checkpoint 8072 | -7/Garrison | Triggered checkpoint 8217 | -7/Garrison | Discovered new exit (range 10) 8308 | -7/Garrison | Triggered checkpoint 8334 | -7/Garrison | Build established: Hauler-Mutant 8368 | -7/Garrison | Garrison Relay disabled 8525 | -7/Garrison | Discovered new exit (range 9) 8586 | -7/Garrison | Triggered checkpoint 8664 | -7/Garrison | Build established: Bothacker-Mutant 8766 | -7/Garrison | Triggered checkpoint 8800 | -7/Garrison | Garrison Relay disabled 8866 | -7/Garrison | Discovered new exit (range 15) 8902 | -7/Garrison | Expanded RIF knowledge: Signal Jamming 8909 | -7/Garrison | Entered Factory 8909 | -6/Factory | Accompanied by 1 ally 8909 | -6/Factory | Evolved 2 slots: Utility x2 9201 | -6/Factory | Build established: Botlord-Mutant 9389 | -6/Factory | Discovered new exit (range 16) 9467 | -6/Factory | Identified exit to Garrison 9467 | -6/Factory | Entered Garrison 9467 | -6/Garrison | Accompanied by 2 allies 9498 | -6/Garrison | Triggered checkpoint 9499 | -6/Garrison | Triggered checkpoint 9546 | -6/Garrison | Triggered checkpoint 9714 | -6/Garrison | Build established: Bothacker-Mutant 10095 | -6/Garrison | Triggered checkpoint 10110 | -6/Garrison | Triggered checkpoint 10131 | -6/Garrison | Triggered checkpoint 10241 | -6/Garrison | Discovered new exit (range 13) 10417 | -6/Garrison | Discovered new exit (range 10) 10447 | -6/Garrison | Expanded RIF knowledge: Autoassimilate 10490 | -6/Garrison | Triggered checkpoint 10590 | -6/Garrison | Garrison Relay disabled 10669 | -6/Garrison | Entered Factory 10669 | -5/Factory | Evolved 2 slots: Utility x2 10748 | -5/Factory | Build established: Botlord-Mutant 10922 | -5/Factory | Identified exit to Garrison 10922 | -5/Factory | Entered Garrison 11167 | -5/Garrison | Triggered checkpoint 11383 | -5/Garrison | Discovered new exit (range 10) 11410 | -5/Garrison | Expanded RIF knowledge: Command Fork 11495 | -5/Garrison | Entered Factory 11495 | -4/Factory | Evolved 2 slots: Utility x2 11777 | -4/Factory | Self-destructed Last Messages --------------- 11734_ Adv. Heat Sink fried. 11734_ G-67 Veteran destroyed. 11738_ Slug penetrates G-67 Veteran. 11740_ R-10 Processor collects Cld. Pulse Rifle. 11740_ Slug penetrates G-67 Veteran. 11741_ A-15 Conveyor calls for reinforcements. 11741_ ALERT: Hostile activity reported, dispatching reinforcements to area. 11746_ R-10 Processor collects Imp. Treads. 11750_ R-10 Processor collects Mic. Fission Core. 11754_ R-10 Processor collects Plasma Rifle. 11754_ R-10 Processor collects Adv. Heat Sink. 11758_ Assembly Bed disabled. 11760_ R-10 Processor collects Adv. Heat Sink. 11769_ G-67 Veteran destroyed. 11769_ R-10 Processor collects Unknown Energy Gun. 11774_ R-10 Processor collects Adv. Heat Sink. 11774_ R-10 Processor collects Plasma Rifle. 11777_ Humpback destroyed. 11777_ R-10 Processor collects Relay Coupler [Duelist]. Map ----- +----------------------------------------------------+ | ???????????????????????# #????????????? | | ???????????????????????# #????????????? | | ???????????????????????######## #????????????? | | ??????????????????????????????# #????????????? | | ??????????????????????????????# #????????????? | | ??????????????????????????????# #############? | | ??????????????????????????????# # # | | ??????????????????????????????# # ! ?? | | ??????????????????????????????# # ??? | | ??????????????????????????????# # """??? | | ??????????????????????????????# # = ""???? | | ??????????????????????????????# # ""???? | | ??????????????????????????????# + """ ??? | | ????#?#???????????????????????# # """ ""???? | | ????# #??????????############## # "S ""???? | | ????# #??????????# # # """ ""???? | | ????# #??????????# """""" # # "" ??? | | ????# #??????????# """""" !# #! ??? | | ##### ############ """""" # ########?????? | | ? ! + ! ! + """%"" # #????????????? | | ? # ###### % + #????????????? | | ??? # """ #????# """""" # #######??????? | | ??? + """ #????# g"""""" + #??????? | | ??? # """ #????# """"""R] ########### #??????? | | ??? # #????# "" =" *R! #?????????# #??????? | | ?? + #????# % ]R!@%=] #?????????#?#??????? | | ??? #+##### #????# !!gg![!!#??????????????????? | | ??### #?# #??################??????????????????? | | ????# ### ##?# ! #???????????????????????? | | ????#???## ### [ #???????????????????????? | | ?????????# + = #???????????????????????? | | ?????????# ### #???????????????????????? | | ?????????#####?##/##+###+#???????????????????????? | | ??????????????### #?# #???????????????????????? | | ??????????????#"" #?# #???????????????????????? | | ??????????????#T #?# #???????????????????????? | | ??????????????### #?# #####???????????????????? | | ????????????????# #?# ????????????????????? | | ????????????????# ### ????????????????????? | | ?????????######## ????????????????????? | | ?????????#! # ????????????????????? | | ?????????# # ????????????????????? | | ?????????# " " + ????????????????????? | | ?????????# "Y" # ????????????????????? | | ?????????#? ?"" # ##### ????????????????????? | | ??????????? # #???# ????????????????????? | | ??????????####### #???# ????????????????????? | | ????????????????# #???# ????????????????????? | | ????????????????#/#???##### ????????????????????? | | ??????????????????????????#??????????????????????? | +----------------------------------------------------+ Best States ------------- Heat Dissipation 62 Energy Generation 21 Energy Capacity 325 Matter Stores 300 Matter Capacity 300 Sight Range 16 Terrain Scan Density 10 Additional Mass Support 9 Armor Coverage 1200 Resistance: EM 90 Propulsion Shielding 66 Evasion (%) 50 Targeting Accuracy 5 Target Analysis 5 Core Analysis 6 Recoil Reduction 2 Relay Coupler Types 76 Relay Coupler Value 3 Item Schematics ----------------- Humpback | -8/Materials | Scanalyzed Arm. Huge Wheel | -7/Factory | Scanalyzed Robot Schematics ------------------ None Fabricated ------------ Humpback | x1 | -7/Factory Humpback | x1 | -7/Factory Arm. Huge Wheel | x2 | -7/Factory Alien Tech Used ----------------- None Achievements -------------- None Challenges ------------ None Game ------ Seed DefenseGuidanceFlakker Manual? 0 Play Time 01:01:40 Cumulative 632.9 hours Start 2020.10.04 @ 11:29:23 End 2020.10.04 @ 12:41:39 Sessions 1 Manual Loads 0 Difficulty Rogue Special Mode None Game No. 967 Rogue 967 Adventurer 0 Explorer 0 Win Type - Total 60 Types 38/1/7/11/3/0/0/0/0 Lore% 94 Gallery% 94 Achievement% 82 Wizard Run 0 Options --------- ASCII 1 Keyboard 0 Movement Numpad Keybinds 0 Fullscreen 0 Font 14/SmallcapsGlow Map View 76x50 Tactical HUD 1 Map Filters NONE Filters NONE Steam 1 RUN: 30a69085-19cd-46df-86bb-9518503fc727